fUST/lending_fUST_20250427
["ID","MTS","AMOUNT","RATE_DAILY","PERIOD"]
[359139447,1745733039002,-151.0,0.00016712,2]
[359139448,1745733039012,-400.0,0.00016712,2]
[359139449,1745733039022,-400.0,0.00016712,2]
[359139450,1745733039031,-500.0,0.00016712,2]
[359139451,1745733039041,-151.0,0.00016712,2]
[359139452,1745733039050,-151.0,0.00016712,2]
[359139453,1745733039060,-400.0,0.00016712,2]
[359139454,1745733039069,-400.0,0.00016712,2]
[359139455,1745733039079,-400.0,0.00016712,2]
[359139456,1745733039089,-3602.71,0.00016712,2]
[359139457,1745733039099,-400.0,0.00016712,2]
[359139458,1745733039109,-151.0,0.00016712,2]
[359139459,1745733039120,-151.0,0.00016712,2]
[359139460,1745733039131,-400.0,0.00016712,2]
[359139461,1745733039141,-400.0,0.00016712,2]
[359139462,1745733039151,-419.30520824,0.00016712,2]
[359139463,1745733039161,-400.0,0.00016712,2]
[359139464,1745733039170,-400.0,0.00016712,2]
[359139465,1745733039180,-291.89367917,0.00016712,2]
[359139466,1745733039189,-400.0,0.00016712,2]
[359139467,1745733039199,-400.0,0.00016712,2]
[359139468,1745733039208,-400.0,0.00016712,2]
[359139469,1745733039217,-400.0,0.00016712,2]
[359139470,1745733039227,-151.0,0.00016712,2]
[359139471,1745733039236,-151.0,0.00016712,2]
[359139472,1745733039245,-731.31,0.00016712,2]
[359139473,1745733039255,-400.0,0.00016712,2]
[359139474,1745733039264,-400.0,0.00016712,2]
[359139475,1745733039274,-405.02181,0.00016712,2]
[359139476,1745733039283,-405.02181,0.00016712,2]
[359139477,1745733039293,-400.0,0.00016712,2]
[359139478,1745733039303,-162.49642835,0.00016712,2]
[359139479,1745733039312,-405.02181,0.00016712,2]
[359139480,1745733039322,-405.02181,0.00016712,2]
[359139481,1745733039331,-400.0,0.00016712,2]
[359139482,1745733039340,-151.0,0.00016712,2]
[359139483,1745733039349,-151.0,0.00016712,2]
[359139484,1745733039360,-400.0,0.00016712,2]
[359139485,1745733039370,-2780.48,0.00016712,2]
[359139486,1745733039380,-418.54701367,0.00016712,2]
[359139487,1745733039389,-156.77,0.00016712,2]
[359139489,1745733039398,-400.0,0.00016712,2]
[359139491,1745733039408,-710.95,0.00016712,2]
[359139493,1745733039417,-400.0,0.00016712,2]
[359139495,1745733039427,-2573.4,0.00016712,2]
[359139497,1745733039436,-400.0,0.00016712,2]
[359139499,1745733039445,-400.0,0.00016712,2]
[359139514,1745733039601,-400.0,0.00016712,2]
[359139517,1745733039611,-284.14387052,0.00016712,2]
[359139586,1745733040228,-151.0,0.00016438,2]
[359139588,1745733040238,-151.0,0.00016438,2]
[359139590,1745733040248,-151.0,0.00016438,2]
[359139592,1745733040259,-163.82241623,0.000165,2]
[359139601,1745733040341,-839.23653425,0.000165,2]
[359139603,1745733040351,-371.17423048,0.00016712,2]
[359139605,1745733040361,-655.318101,0.00016712,2]
[359139607,1745733040371,-655.318101,0.00016712,2]
[359139609,1745733040381,-655.318101,0.00016712,2]
[359139611,1745733040390,-1534.38,0.00016712,2]
[359139613,1745733040399,-3116.41,0.00016712,2]
[359139614,1745733040409,-400.0,0.00016712,2]
[359139615,1745733040418,-253.06216664,0.00016712,2]
[359139616,1745733040430,-400.0,0.00016712,2]
[359139617,1745733040439,-400.0,0.00016712,2]
[359139619,1745733040449,-3403.61,0.00016712,2]
[359139621,1745733040458,-400.0,0.00016712,2]
[359139623,1745733040467,-1489.53,0.00016712,2]
[359139625,1745733040478,-151.0,0.00016712,2]
[359139627,1745733040488,-400.0,0.00016712,2]
[359139629,1745733040497,-151.0,0.00016712,2]
[359139631,1745733040507,-187.89660856,0.00016712,2]
[359139633,1745733040517,-151.0,0.00016712,2]
[359139635,1745733040527,-400.0,0.00016712,2]
[359139637,1745733040536,-2524.21,0.00016712,2]
[359139639,1745733040546,-400.0,0.00016712,2]
[359139641,1745733040560,-1966.71,0.00016712,2]
[359139643,1745733040570,-1935.35,0.00016712,2]
[359139645,1745733040581,-400.0,0.00016712,2]
[359139648,1745733040592,-151.0,0.00016712,2]
[359139650,1745733040604,-151.0,0.00016712,2]
[359139652,1745733040615,-203.16,0.00016712,2]
[359139654,1745733040627,-2373.0,0.00016712,2]
[359139657,1745733040639,-400.0,0.00016712,2]
[359139659,1745733040649,-775.53,0.00016712,2]
[359139661,1745733040660,-400.0,0.00016712,2]
[359139663,1745733040670,-400.0,0.00016712,2]
[359139665,1745733040679,-400.0,0.00016712,2]
[359139667,1745733040689,-400.0,0.00016712,2]
[359139669,1745733040698,-400.0,0.00016712,2]
[359139671,1745733040708,-2122.99,0.00016712,2]
[359139673,1745733040719,-400.0,0.00016712,2]
[359139676,1745733040731,-400.0,0.00016712,2]
[359139678,1745733040740,-226.4300654,0.00016712,2]
[359139680,1745733040750,-1776.77,0.00016712,2]
[359139682,1745733040760,-400.0,0.00016712,2]
[359139684,1745733040770,-400.0,0.00016712,2]
[359139686,1745733040781,-151.0,0.00016712,2]
[359139688,1745733040790,-166.140953,0.00016712,2]
[359139690,1745733040800,-400.0,0.00016712,2]
[359139692,1745733040810,-151.0,0.00016712,2]
[359139694,1745733040821,-151.0,0.00016712,2]
[359139696,1745733040832,-400.0,0.00016712,2]
[359139699,1745733040846,-400.0,0.00016712,2]
[359139701,1745733040855,-151.0,0.00016712,2]
[359139703,1745733040865,-400.0,0.00016712,2]
[359139705,1745733040875,-400.0,0.00016712,2]
[359139707,1745733040885,-400.0,0.00016712,2]
[359139709,1745733040895,-484.54112358,0.00016712,2]
[359139711,1745733040904,-151.0,0.00016712,2]
[359139713,1745733040914,-151.0,0.00016712,2]
[359139715,1745733040925,-151.0,0.00016712,2]
[359139717,1745733040934,-151.0,0.00016712,2]
[359139719,1745733040946,-400.0,0.00016712,2]
[359139721,1745733040956,-400.0,0.00016712,2]
[359139723,1745733040966,-2138.92,0.00016712,2]
[359139725,1745733040976,-400.0,0.00016712,2]
[359139727,1745733040986,-151.0,0.00016712,2]
[359139729,1745733040997,-151.0,0.00016712,2]
[359139731,1745733041007,-400.0,0.00016712,2]
[359139734,1745733041019,-2004.93,0.00016712,2]
[359139736,1745733041030,-400.0,0.00016712,2]
[359139738,1745733041040,-500.0,0.00016712,2]
[359139740,1745733041049,-2504.51,0.00016712,2]
[359139742,1745733041059,-151.0,0.00016712,2]
[359139744,1745733041069,-165.642528,0.00016712,2]
[359139746,1745733041079,-400.0,0.00016712,2]
[359139748,1745733041089,-400.0,0.00016712,2]
[359139750,1745733041099,-1998.5,0.00016712,2]
[359139752,1745733041108,-151.0,0.00016712,2]
[359139754,1745733041118,-151.0,0.00016712,2]
[359139756,1745733041128,-151.0,0.00016712,2]
[359139758,1745733041138,-400.0,0.00016712,2]
[359139760,1745733041148,-400.0,0.00016712,2]
[359139762,1745733041158,-400.0,0.00016712,2]
[359139764,1745733041167,-400.0,0.00016712,2]
[359139765,1745733041179,-181.254798,0.00016712,2]
[359139766,1745733041189,-181.254798,0.00016712,2]
[359139768,1745733041199,-400.0,0.00016712,2]
[359139770,1745733041209,-500.87,0.00016712,2]
[359139772,1745733041219,-181.254798,0.00016712,2]
[359139774,1745733041229,-181.254798,0.00016712,2]
[359139776,1745733041239,-2278.43,0.00016712,2]
[359139778,1745733041248,-400.0,0.00016712,2]
[359139780,1745733041258,-1611.78,0.00016712,2]
[359139782,1745733041268,-400.0,0.00016712,2]
[359139784,1745733041278,-1119.47,0.00016712,2]
[359139786,1745733041289,-1071.77,0.00016712,2]
[359139788,1745733041299,-1605.09,0.00016712,2]
[359139790,1745733041309,-400.0,0.00016712,2]
[359139792,1745733041320,-3766.76,0.00016712,2]
[359139794,1745733041331,-810.54,0.00016712,2]
[359139796,1745733041340,-311.83620853,0.00016712,2]
[359139798,1745733041350,-2206.94,0.00016712,2]
[359139800,1745733041360,-151.0,0.00016712,2]
[359139802,1745733041370,-288.172533,0.00016712,2]
[359139804,1745733041380,-2601.25,0.00016712,2]
[359139806,1745733041391,-400.0,0.00016712,2]
[359139807,1745733041401,-400.0,0.00016712,2]
[359139808,1745733041410,-400.0,0.00016712,2]
[359139809,1745733041420,-151.0,0.00016712,2]
[359139810,1745733041431,-151.0,0.00016712,2]
[359139811,1745733041443,-151.0,0.00016712,2]
[359139812,1745733041454,-151.0,0.00016712,2]
[359139813,1745733041465,-151.0,0.00016712,2]
[359139814,1745733041475,-151.0,0.00016712,2]
[359139815,1745733041486,-1500.0,0.00016712,2]
[359139816,1745733041497,-1908.0964597,0.00016749,2]
[359139817,1745733041508,-500.0,0.00016773,2]
[359139818,1745733041519,-500.0,0.00016773,2]
[359139819,1745733041530,-501.37081242,0.00016773,2]
[359139820,1745733041539,-252.591565,0.00016773,2]
[359139821,1745733041550,-501.10407,0.00016773,2]
[359139822,1745733041559,-500.0,0.00016773,2]
[359139823,1745733041569,-500.0,0.00016773,2]
[359139824,1745733041579,-500.0,0.00016773,2]
[359139825,1745733041589,-501.56552259,0.00016773,2]
[359139826,1745733041598,-501.14532963,0.00016773,2]
[359139827,1745733041608,-500.0,0.00016773,2]
[359139828,1745733041617,-162.87663101,0.00016773,2]
[359139829,1745733041627,-236.1534153,0.00016773,2]
[359139830,1745733041637,-500.0,0.00016773,2]
[359139831,1745733041647,-588.88960299,0.00016773,2]
[359139832,1745733041656,-500.0,0.00016773,2]
[359139833,1745733041667,-151.0,0.00016886,2]
[359139834,1745733041676,-151.0,0.00016886,2]
[359139835,1745733041686,-1908.0964597,0.00016886,2]
[359139836,1745733041696,-151.0,0.00016886,2]
[359139837,1745733041706,-271.452412,0.00016886,2]
[359139838,1745733041716,-255.14316985,0.00016899,2]
[359139839,1745733041730,-500.0,0.00016973,2]
[359139840,1745733041740,-160.0,0.00016986,3]
[359139841,1745733041750,-840.47993636,0.00016986,3]
[359139842,1745733041760,-12584.55399671,0.00016986,3]
[359139843,1745733041771,-2518.084526,0.00016986,2]
[359139844,1745733041781,-151.0,0.00016986,2]
[359139845,1745733041791,-151.0,0.00016986,2]
[359139846,1745733041801,-200.0,0.00016986,2]
[359139847,1745733041811,-345.24302045,0.00016986,2]
[359139848,1745733041821,-200.0,0.00016986,2]
[359139849,1745733041831,-200.0,0.00016986,2]
[359139850,1745733041841,-200.0,0.00016986,2]
[359139851,1745733041850,-400.0,0.00016986,2]
[359139852,1745733041860,-200.0,0.00016986,2]
[359139853,1745733041870,-400.0,0.00016986,2]
[359139854,1745733041880,-200.0,0.00016986,2]
[359139855,1745733041890,-200.0,0.00016986,2]
[359139856,1745733041900,-200.0,0.00016986,2]
[359139857,1745733041910,-200.0,0.00016986,2]
[359139858,1745733041920,-200.0,0.00016986,2]
[359139859,1745733041930,-440.28856717,0.00016986,2]
[359139860,1745733042136,-400.0,0.00016986,2]
[359139861,1745733042150,-200.0,0.00016986,2]
[359139862,1745733042160,-151.0,0.00016986,2]
[359139863,1745733042170,-151.0,0.00016986,2]
[359139864,1745733042180,-400.0,0.00016986,2]
[359139865,1745733042190,-200.0,0.00016986,2]
[359139866,1745733042200,-400.0,0.00016986,2]
[359139867,1745733042210,-400.0,0.00016986,2]
[359139868,1745733042219,-151.0,0.00016986,2]
[359139869,1745733042229,-151.0,0.00016986,2]
[359139870,1745733042238,-400.0,0.00016986,2]
[359139871,1745733042248,-400.0,0.00016986,2]
[359139872,1745733042257,-400.0,0.00016986,2]
[359139873,1745733042267,-151.0,0.00016986,2]
[359139874,1745733042278,-400.0,0.00016986,2]
[359139875,1745733042288,-151.0,0.00016986,2]
[359139876,1745733042298,-1679.42,0.00016986,2]
[359139877,1745733042307,-200.0,0.00016986,2]
[359139878,1745733042319,-400.0,0.00016986,2]
[359139879,1745733042331,-400.0,0.00016986,2]
[359139880,1745733042343,-400.0,0.00016986,2]
[359139881,1745733042353,-400.0,0.00016986,2]
[359139882,1745733042363,-400.0,0.00016986,2]
[359139883,1745733042372,-400.0,0.00016986,2]
[359139884,1745733042382,-400.0,0.00016986,2]
[359139885,1745733042393,-1705.17,0.00016986,2]
[359139886,1745733042402,-400.0,0.00016986,2]
[359139887,1745733042412,-400.0,0.00016986,2]
[359139888,1745733042421,-1890.4,0.00016986,2]
[359139889,1745733042431,-365.40510812,0.00016986,2]
[359139890,1745733042440,-400.0,0.00016986,2]
[359139891,1745733042450,-151.0,0.00016986,2]
[359139892,1745733042460,-151.0,0.00016986,2]
[359139893,1745733042469,-400.0,0.00016986,2]
[359139894,1745733042478,-1781.18,0.00016986,2]
[359139895,1745733042488,-400.0,0.00016986,2]
[359139896,1745733042497,-400.0,0.00016986,2]
[359139897,1745733042506,-151.0,0.00016986,2]
[359139898,1745733042516,-215.064476,0.00016986,2]
[359139899,1745733042525,-151.0,0.00016986,2]
[359139900,1745733042535,-151.0,0.00016986,2]
[359139901,1745733042544,-2047.53,0.00016986,2]
[359139902,1745733042555,-400.0,0.00016986,2]
[359139903,1745733042564,-200.0,0.00016986,2]
[359139904,1745733042574,-400.0,0.00016986,2]
[359139905,1745733042584,-200.0,0.00016986,2]
[359139906,1745733042593,-400.0,0.00016986,2]
[359139907,1745733042603,-400.0,0.00016986,2]
[359139908,1745733042613,-400.0,0.00016986,2]
[359139910,1745733042622,-400.0,0.00016986,2]
[359139912,1745733042632,-400.0,0.00016986,2]
[359139913,1745733042642,-400.0,0.00016986,2]
[359139914,1745733042652,-400.0,0.00016986,2]
[359139915,1745733042662,-400.0,0.00016986,2]
[359139916,1745733042672,-400.0,0.00016986,2]
[359139917,1745733042682,-200.0,0.00016986,2]
[359139918,1745733042692,-400.0,0.00016986,2]
[359139919,1745733042702,-400.0,0.00016986,2]
[359139920,1745733042712,-151.0,0.00016986,2]
[359139921,1745733042725,-151.0,0.00016986,2]
[359139922,1745733042735,-200.0,0.00016986,2]
[359139923,1745733042744,-200.0,0.00016986,2]
[359139925,1745733042754,-400.0,0.00016986,2]
[359139927,1745733042764,-3602.71,0.00016986,2]
[359139928,1745733042773,-200.0,0.00016986,2]
[359139929,1745733042783,-151.0,0.00016986,2]
[359139931,1745733042792,-151.0,0.00016986,2]
[359139933,1745733042801,-400.0,0.00016986,2]
[359139935,1745733042812,-400.0,0.00016986,2]
[359139937,1745733042822,-400.0,0.00016986,2]
[359139939,1745733042831,-214.64932986,0.00016986,2]
[359139941,1745733042841,-400.0,0.00016986,2]
[359139943,1745733042851,-400.0,0.00016986,2]
[359139945,1745733042860,-400.0,0.00016986,2]
[359139947,1745733042870,-400.0,0.00016986,2]
[359139949,1745733042879,-151.0,0.00016986,2]
[359139951,1745733042889,-151.0,0.00016986,2]
[359139953,1745733042898,-200.0,0.00016986,2]
[359139955,1745733042909,-400.0,0.00016986,2]
[359139957,1745733042919,-405.02181,0.00016986,2]
[359139959,1745733042929,-405.02181,0.00016986,2]
[359139961,1745733042939,-206.53215251,0.00016986,2]
[359139962,1745733042948,-400.0,0.00016986,2]
[359139963,1745733042958,-405.02181,0.00016986,2]
[359139964,1745733042968,-405.02181,0.00016986,2]
[359139965,1745733042978,-151.376095,0.00016986,2]
[359139966,1745733042988,-400.0,0.00016986,2]
[359139967,1745733042998,-400.0,0.00016986,2]
[359139968,1745733043009,-400.0,0.00016986,2]
[359139969,1745733043019,-2573.4,0.00016986,2]
[359139970,1745733043030,-400.0,0.00016986,2]
[359139971,1745733043040,-400.0,0.00016986,2]
[359139972,1745733043049,-400.0,0.00016986,2]
[359139973,1745733043059,-655.318101,0.00016986,2]
[359139974,1745733043074,-655.318101,0.00016986,2]
[359139975,1745733043084,-655.318101,0.00016986,2]
[359139976,1745733043094,-655.318101,0.00016986,2]
[359139977,1745733043104,-1534.38,0.00016986,2]
[359139978,1745733043114,-3116.41,0.00016986,2]
[359139979,1745733043124,-200.0,0.00016986,2]
[359139980,1745733043134,-461.09437084,0.00016986,2]
[359139982,1745733043144,-205.12951914,0.00016986,2]
[359139983,1745733043155,-400.0,0.00016986,2]
[359139984,1745733043165,-3403.61,0.00016986,2]
[359139985,1745733043175,-1489.53,0.00016986,2]
[359139986,1745733043185,-400.0,0.00016986,2]
[359139987,1745733043196,-151.0,0.00016986,2]
[359139988,1745733043206,-151.0,0.00016986,2]
[359139989,1745733043216,-400.0,0.00016986,2]
[359139990,1745733043226,-2524.21,0.00016986,2]
[359139991,1745733043236,-400.0,0.00016986,2]
[359139992,1745733043246,-1966.71,0.00016986,2]
[359139993,1745733043256,-1935.35,0.00016986,2]
[359139994,1745733043266,-400.0,0.00016986,2]
[359139995,1745733043277,-2373.0,0.00016986,2]
[359139996,1745733043287,-400.0,0.00016986,2]
[359139997,1745733043297,-775.53,0.00016986,2]
[359139998,1745733043307,-354.68,0.00016986,2]
[359139999,1745733043316,-400.0,0.00016986,2]
[359140000,1745733043326,-400.0,0.00016986,2]
[359140001,1745733043336,-400.0,0.00016986,2]
[359140002,1745733043346,-400.0,0.00016986,2]
[359140003,1745733043356,-2122.99,0.00016986,2]
[359140004,1745733043366,-200.0,0.00016986,2]
[359140005,1745733043375,-400.0,0.00016986,2]
[359140006,1745733043386,-1776.77,0.00016986,2]
[359140007,1745733043396,-400.0,0.00016986,2]
[359140008,1745733043406,-157.70453469,0.00016986,2]
[359140009,1745733043416,-400.0,0.00016986,2]
[359140010,1745733043426,-165.272731,0.00016986,2]
[359140011,1745733043436,-400.0,0.00016986,2]
[359140012,1745733043446,-200.0,0.00016986,2]
[359140013,1745733043455,-400.0,0.00016986,2]
[359140014,1745733043465,-150.31431257,0.00016986,2]
[359140015,1745733043475,-200.0,0.00016986,2]
[359140016,1745733043485,-151.0,0.00016986,2]
[359140017,1745733043495,-151.0,0.00016986,2]
[359140018,1745733043504,-151.0,0.00016986,2]
[359140019,1745733043514,-151.0,0.00016986,2]
[359140020,1745733043523,-400.0,0.00016986,2]
[359140021,1745733043534,-400.0,0.00016986,2]
[359140022,1745733043543,-2138.92,0.00016986,2]
[359140023,1745733043553,-210.59050031,0.00016986,2]
[359140024,1745733043564,-151.0,0.00016986,2]
[359140025,1745733043574,-151.0,0.00016986,2]
[359140026,1745733043584,-400.0,0.00016986,2]
[359140027,1745733043594,-2004.93,0.00016986,2]
[359140028,1745733043604,-200.0,0.00016986,2]
[359140029,1745733043615,-2504.51,0.00016986,2]
[359140030,1745733043625,-400.0,0.00016986,2]
[359140031,1745733043634,-1998.5,0.00016986,2]
[359140032,1745733043644,-400.0,0.00016986,2]
[359140033,1745733043653,-400.0,0.00016986,2]
[359140034,1745733043663,-400.0,0.00016986,2]
[359140035,1745733043673,-400.0,0.00016986,2]
[359140036,1745733043682,-400.0,0.00016986,2]
[359140037,1745733043691,-181.254798,0.00016986,2]
[359140038,1745733043703,-181.254798,0.00016986,2]
[359140039,1745733043712,-400.0,0.00016986,2]
[359140040,1745733043724,-500.87,0.00016986,2]
[359140041,1745733043734,-181.254798,0.00016986,2]
[359140042,1745733043744,-181.254798,0.00016986,2]
[359140043,1745733043754,-2278.43,0.00016986,2]
[359140044,1745733043763,-400.0,0.00016986,2]
[359140045,1745733043775,-1611.78,0.00016986,2]
[359140046,1745733043785,-400.0,0.00016986,2]
[359140047,1745733043795,-1119.47,0.00016986,2]
[359140048,1745733043806,-1071.77,0.00016986,2]
[359140049,1745733043816,-1605.09,0.00016986,2]
[359140050,1745733043826,-218.09020635,0.00016986,2]
[359140051,1745733043836,-3766.76,0.00016986,2]
[359140052,1745733043845,-810.54,0.00016986,2]
[359140053,1745733043855,-2206.94,0.00016986,2]
[359140054,1745733043865,-2601.25,0.00016986,2]
[359140055,1745733043874,-400.0,0.00016986,2]
[359140056,1745733043885,-400.0,0.00016986,2]
[359140057,1745733043895,-400.0,0.00016986,2]
[359140058,1745733043904,-151.0,0.00016986,2]
[359140059,1745733043914,-2000.0,0.00016986,2]
[359140060,1745733043924,-97329.0,0.00017,2]
[359140061,1745733043934,-250.0,0.00017,2]
[359140062,1745733043943,-151.0,0.00017,2]
[359140063,1745733043953,-151.0,0.00017,2]
[359140064,1745733043963,-151.0,0.00017,2]
[359140065,1745733043973,-151.0,0.00017,2]
[359140066,1745733043983,-151.0,0.00017,2]
[359140067,1745733043992,-151.0,0.00017,2]
[359140068,1745733044003,-151.0,0.00017,2]
[359140069,1745733044012,-151.0,0.00017,2]
[359140070,1745733044022,-151.0,0.00017,2]
[359140071,1745733044033,-405.02181,0.00017,2]
[359140072,1745733044042,-405.02181,0.00017,2]
[359140073,1745733044052,-655.318101,0.00017,2]
[359140074,1745733044062,-655.318101,0.00017,2]
[359140075,1745733044072,-151.0,0.00017,2]
[359140076,1745733044082,-151.0,0.00017,2]
[359140077,1745733044091,-151.0,0.00017,2]
[359140078,1745733044102,-151.0,0.00017,2]
[359140079,1745733044111,-181.254798,0.00017,2]
[359140080,1745733044121,-181.254798,0.00017,2]
[359140081,1745733044131,-151.0,0.00017,2]
[359140082,1745733044141,-212.50400117,0.00017203,2]
[359140083,1745733044151,-500.0,0.00017259,2]
[359140084,1745733044162,-151.0,0.0001726,2]
[359140085,1745733044172,-288.640384,0.0001726,2]
[359140086,1745733044182,-400.0,0.0001726,2]
[359140087,1745733044191,-300.0,0.0001726,2]
[359140088,1745733044201,-200.0,0.0001726,2]
[359140089,1745733044211,-151.0,0.0001726,2]
[359140090,1745733044222,-400.0,0.0001726,2]
[359140091,1745733044232,-251.06029014,0.0001726,2]
[359140092,1745733044242,-400.0,0.0001726,2]
[359140093,1745733044252,-400.0,0.0001726,2]
[359140094,1745733044262,-400.0,0.0001726,2]
[359140095,1745733044272,-400.0,0.0001726,2]
[359140096,1745733044282,-212.49,0.0001726,2]
[359140097,1745733044292,-151.0,0.0001726,2]
[359140098,1745733044302,-1679.42,0.0001726,2]
[359140099,1745733044312,-400.0,0.0001726,2]
[359140100,1745733044322,-400.0,0.0001726,2]
[359140101,1745733044332,-400.0,0.0001726,2]
[359140102,1745733044342,-200.0,0.0001726,2]
[359140103,1745733044352,-476.48,0.0001726,2]
[359140104,1745733044361,-400.0,0.0001726,2]
[359140105,1745733044371,-400.0,0.0001726,2]
[359140106,1745733044381,-1705.17,0.0001726,2]
[359140107,1745733044391,-230.88,0.0001726,2]
[359140108,1745733044401,-400.0,0.0001726,2]
[359140109,1745733044410,-1890.4,0.0001726,2]
[359140110,1745733044420,-400.0,0.0001726,2]
[359140111,1745733044430,-151.0,0.0001726,2]
[359140112,1745733044576,-400.0,0.0001726,2]
[359140113,1745733044587,-1781.18,0.0001726,2]
[359140114,1745733044598,-400.0,0.0001726,2]
[359140115,1745733044610,-400.0,0.0001726,2]
[359140116,1745733044621,-269.738534,0.0001726,2]
[359140117,1745733044631,-2047.53,0.0001726,2]
[359140118,1745733044640,-400.0,0.0001726,2]
[359140119,1745733044650,-400.0,0.0001726,2]
[359140120,1745733044659,-400.0,0.0001726,2]
[359140121,1745733044669,-400.0,0.0001726,2]
[359140122,1745733044678,-400.0,0.0001726,2]
[359140123,1745733044688,-200.0,0.0001726,2]
[359140124,1745733044698,-400.0,0.0001726,2]
[359140125,1745733044708,-400.0,0.0001726,2]
[359140126,1745733044718,-400.0,0.0001726,2]
[359140127,1745733044730,-400.0,0.0001726,2]
[359140128,1745733044740,-400.0,0.0001726,2]
[359140129,1745733044751,-400.0,0.0001726,2]
[359140130,1745733044760,-400.0,0.0001726,2]
[359140131,1745733044769,-213.090615,0.0001726,2]
[359140132,1745733044779,-200.0,0.0001726,2]
[359140133,1745733044789,-3602.71,0.0001726,2]
[359140134,1745733044798,-151.0,0.0001726,2]
[359140135,1745733044807,-200.0,0.0001726,2]
[359140136,1745733044816,-400.0,0.0001726,2]
[359140137,1745733044826,-200.0,0.0001726,2]
[359140138,1745733044835,-200.0,0.0001726,2]
[359140139,1745733044846,-400.0,0.0001726,2]
[359140140,1745733044856,-400.0,0.0001726,2]
[359140141,1745733044866,-400.0,0.0001726,2]
[359140142,1745733044877,-151.0,0.0001726,2]
[359140143,1745733044887,-400.0,0.0001726,2]
[359140144,1745733044898,-405.02181,0.0001726,2]
[359140145,1745733044908,-400.0,0.0001726,2]
[359140146,1745733044918,-405.02181,0.0001726,2]
[359140147,1745733044929,-434.12,0.0001726,2]
[359140148,1745733044940,-400.0,0.0001726,2]
[359140149,1745733044949,-400.0,0.0001726,2]
[359140150,1745733044959,-2573.4,0.0001726,2]
[359140151,1745733044970,-400.0,0.0001726,2]
[359140152,1745733044980,-400.0,0.0001726,2]
[359140153,1745733044990,-300.0,0.0001726,2]
[359140154,1745733044999,-655.318101,0.0001726,2]
[359140155,1745733045010,-1534.38,0.0001726,2]
[359140156,1745733045020,-655.318101,0.0001726,2]
[359140157,1745733045030,-3116.41,0.0001726,2]
[359140158,1745733045040,-200.0,0.0001726,2]
[359140159,1745733045050,-3403.61,0.0001726,2]
[359140160,1745733045061,-1489.53,0.0001726,2]
[359140161,1745733045071,-200.0,0.0001726,2]
[359140162,1745733045081,-151.0,0.0001726,2]
[359140163,1745733045090,-300.0,0.0001726,2]
[359140164,1745733045101,-2524.21,0.0001726,2]
[359140165,1745733045111,-400.0,0.0001726,2]
[359140166,1745733045121,-1966.71,0.0001726,2]
[359140167,1745733045131,-1794.65764606,0.0001726,2]
[359140168,1745733045287,-140.69235394,0.0001726,2]
[359140169,1745733045296,-200.0,0.0001726,2]
[359140170,1745733045306,-2373.0,0.0001726,2]